[Event "Live Chess"]
[Site "Chess.com"]
[Date "2023.05.21"]
[Round "-"]
[White "1600x"]
[Black "garyjc"]
[Result "1-0"]
[WhiteElo "1937"]
[BlackElo "1080"]
[TimeControl "300"]
[EndTime "8:36:14 PDT"]
[Termination "1600x won on time"]

1. e4 {[%clk 0:04:58.1]} 1... c5 {[%clk 0:04:57.1]} 2. Nf3 {[%clk 0:04:58]} 2...
a6 {[%clk 0:04:55.8]} 3. Qe2 {[%clk 0:04:54.2]} 3... b5 {[%clk 0:04:44.2]} 4. a4
{[%clk 0:04:50.4]} 4... bxa4 {[%clk 0:04:31.8]} 5. d4 {[%clk 0:04:49]} 5... cxd4
{[%clk 0:04:17.2]} 6. Nxd4 {[%clk 0:04:48.9]} 6... e5 {[%clk 0:04:14]} 7. Nf3
{[%clk 0:04:47.9]} 7... Nf6 {[%clk 0:04:07.9]} 8. Rxa4 {[%clk 0:04:45.2]} 8...
Nc6 {[%clk 0:04:01.8]} 9. c3 {[%clk 0:04:43.8]} 9... Bd6 {[%clk 0:03:54.9]} 10.
Qd1 {[%clk 0:04:41.7]} 10... Qe7 {[%clk 0:03:46.8]} 11. Nbd2 {[%clk 0:04:40]}
11... O-O {[%clk 0:03:45.3]} 12. b4 {[%clk 0:04:38.8]} 12... Bb7 {[%clk
0:03:20.5]} 13. h4 {[%clk 0:04:36.4]} 13... Nh5 {[%clk 0:03:16.4]} 14. Nc4
{[%clk 0:04:32.5]} 14... Bc7 {[%clk 0:03:02.7]} 15. g4 {[%clk 0:04:30.9]} 15...
Nf4 {[%clk 0:03:00]} 16. g5 {[%clk 0:04:29.6]} 16... Na7 {[%clk 0:02:40.9]} 17.
Be3 {[%clk 0:04:27.2]} 17... Bxe4 {[%clk 0:02:36.2]} 18. Bc5 {[%clk 0:04:24.3]}
18... d6 {[%clk 0:02:16]} 19. Be3 {[%clk 0:04:22.2]} 19... Nb5 {[%clk
0:02:05.8]} 20. Bd2 {[%clk 0:03:47.4]} 20... Bd3 {[%clk 0:01:53.4]} 21. Nb2
{[%clk 0:03:42.8]} 21... Bxf1 {[%clk 0:01:41.4]} 22. Kxf1 {[%clk 0:03:40.7]}
22... e4 {[%clk 0:01:30.3]} 23. c4 {[%clk 0:03:38.5]} 23... exf3 {[%clk
0:01:24.7]} 24. Bxf4 {[%clk 0:03:36.2]} 24... Nc3 {[%clk 0:01:19.6]} 25. Qxf3
{[%clk 0:03:34]} 25... Nxa4 {[%clk 0:01:15.5]} 26. Nxa4 {[%clk 0:03:33.9]} 26...
Rfe8 {[%clk 0:01:11.8]} 27. Qe3 {[%clk 0:03:32]} 27... Qxe3 {[%clk 0:01:05.7]}
28. Bxe3 {[%clk 0:03:31]} 28... Rac8 {[%clk 0:00:58.5]} 29. Nc3 {[%clk
0:03:25.6]} 29... Bb8 {[%clk 0:00:53.5]} 30. c5 {[%clk 0:03:24.1]} 30... dxc5
{[%clk 0:00:52.3]} 31. Bxc5 {[%clk 0:03:21.7]} 31... Rcd8 {[%clk 0:00:42.1]} 32.
Kg2 {[%clk 0:03:20]} 32... Bd6 {[%clk 0:00:40.9]} 33. Bxd6 {[%clk 0:03:18.7]}
33... Rxd6 {[%clk 0:00:40]} 34. b5 {[%clk 0:03:17.4]} 34... axb5 {[%clk
0:00:37.6]} 35. Nxb5 {[%clk 0:03:16.4]} 35... Rd2 {[%clk 0:00:35.5]} 36. Ra1
{[%clk 0:03:14.1]} 36... g6 {[%clk 0:00:32.5]} 37. Ra4 {[%clk 0:03:10]} 37...
Ree2 {[%clk 0:00:31.3]} 38. Rf4 {[%clk 0:03:08.4]} 38... Kg7 {[%clk 0:00:28.2]}
39. Nc3 {[%clk 0:03:07]} 39... Re8 {[%clk 0:00:25.6]} 40. Ne4 {[%clk 0:03:05.8]}
40... Rdd8 {[%clk 0:00:22.4]} 41. Nf6 {[%clk 0:03:04.4]} 41... Re2 {[%clk
0:00:16.9]} 42. Ng4 {[%clk 0:03:02.8]} 42... Ra8 {[%clk 0:00:15.6]} 43. Rd4
{[%clk 0:03:01.7]} 43... Raa2 {[%clk 0:00:12]} 44. Rd7 {[%clk 0:03:00.4]} 44...
Kf8 {[%clk 0:00:06.8]} 45. Kg3 {[%clk 0:02:59.2]} 45... Ra3+ {[%clk 0:00:04.4]}
46. f3 {[%clk 0:02:57.8]} 46... Re1 {[%clk 0:00:01.5]} 47. Nh6 {[%clk
0:02:56.2]} 47... Rg1+ {[%clk 0:00:00.5]} 48. Kf2 {[%clk 0:02:54.8]} 1-0

[Event "Live Chess"]
[Site "Chess.com"]
[Date "2023.05.21"]
[Round "-"]
[White "jimwad"]
[Black "seabuck"]
[Result "0-1"]
[WhiteElo "1217"]
[BlackElo "1909"]
[TimeControl "300"]
[EndTime "8:36:18 PDT"]
[Termination "seabuck won by resignation"]

1. d4 {[%clk 0:04:58.2]} 1... e6 {[%clk 0:04:58.3]} 2. c4 {[%clk 0:04:57.3]}
2... d5 {[%clk 0:04:57.3]} 3. Nc3 {[%clk 0:04:55.8]} 3... c5 {[%clk 0:04:56.4]}
4. dxc5 {[%clk 0:04:53.7]} 4... d4 {[%clk 0:04:54.4]} 5. Ne4 {[%clk 0:04:51.4]}
5... f5 {[%clk 0:04:38.2]} 6. Nd6+ {[%clk 0:04:43.4]} 6... Bxd6 {[%clk
0:04:36.9]} 7. cxd6 {[%clk 0:04:42.1]} 7... Qxd6 {[%clk 0:04:35.9]} 8. e3 {[%clk
0:04:40.6]} 8... Nc6 {[%clk 0:04:23.2]} 9. exd4 {[%clk 0:04:37.7]} 9... Qxd4
{[%clk 0:04:19.3]} 10. Qxd4 {[%clk 0:04:36.3]} 10... Nxd4 {[%clk 0:04:17.7]} 11.
Bd3 {[%clk 0:04:29]} 11... Nf6 {[%clk 0:04:11.9]} 12. Be3 {[%clk 0:04:27.5]}
12... e5 {[%clk 0:04:05.8]} 13. Ne2 {[%clk 0:04:23.7]} 13... Nxe2 {[%clk
0:04:01.4]} 14. Kxe2 {[%clk 0:04:21]} 14... O-O {[%clk 0:03:58.7]} 15. b3 {[%clk
0:04:14.1]} 15... Be6 {[%clk 0:03:54]} 16. Rad1 {[%clk 0:04:11.3]} 16... b6
{[%clk 0:03:46.3]} 17. c5 {[%clk 0:04:07.3]} 17... f4 {[%clk 0:03:35.6]} 18. Bc1
{[%clk 0:03:57.3]} 18... bxc5 {[%clk 0:03:34.4]} 19. Ba3 {[%clk 0:03:55.5]}
19... Rac8 {[%clk 0:03:27.2]} 20. Ba6 {[%clk 0:03:52.7]} 20... Rc7 {[%clk
0:03:21.5]} 21. Rd6 {[%clk 0:03:41.1]} 21... Bc8 {[%clk 0:03:12.4]} 22. Bc4+
{[%clk 0:03:36.8]} 22... Kh8 {[%clk 0:03:07.1]} 23. Bb2 {[%clk 0:03:31.6]} 23...
Rd7 {[%clk 0:02:28.2]} 24. Rhd1 {[%clk 0:03:29.7]} 24... Rxd6 {[%clk 0:02:20.7]}
25. Rxd6 {[%clk 0:03:27.9]} 25... h6 {[%clk 0:02:06.6]} 26. Bxe5 {[%clk
0:03:25.2]} 26... Re8 {[%clk 0:02:01.1]} 27. Bd3 {[%clk 0:03:15.1]} 27... Rxe5+
{[%clk 0:01:59.5]} 28. Kf3 {[%clk 0:03:10]} 28... Re8 {[%clk 0:01:52.9]} 29.
Kxf4 {[%clk 0:03:08]} 29... g5+ {[%clk 0:01:45.9]} 30. Kf3 {[%clk 0:03:04.2]}
30... Bb7+ {[%clk 0:01:39.6]} 31. Kg3 {[%clk 0:03:01.9]} 31... Kg7 {[%clk
0:01:30.9]} 32. h4 {[%clk 0:02:52.9]} 32... Be4 {[%clk 0:01:25.9]} 33. Bb5
{[%clk 0:02:47.5]} 33... Re7 {[%clk 0:01:24.3]} 34. hxg5 {[%clk 0:02:44.8]}
34... hxg5 {[%clk 0:01:22.6]} 35. f3 {[%clk 0:02:43.8]} 35... Bf5 {[%clk
0:01:17.8]} 36. Kf2 {[%clk 0:02:42.2]} 36... g4 {[%clk 0:01:13.8]} 37. fxg4
{[%clk 0:02:38.4]} 37... Ne4+ {[%clk 0:01:13]} 0-1

[Event "Live Chess"]
[Site "Chess.com"]
[Date "2023.05.21"]
[Round "-"]
[White "Biranidun"]
[Black "raminguy"]
[Result "1-0"]
[WhiteElo "2521"]
[BlackElo "1936"]
[TimeControl "300"]
[EndTime "8:36:19 PDT"]
[Termination "Biranidun won by resignation"]

1. e4 {[%clk 0:04:59.4]} 1... e5 {[%clk 0:04:58.2]} 2. Nf3 {[%clk 0:04:58.6]}
2... Nc6 {[%clk 0:04:57.7]} 3. Bc4 {[%clk 0:04:57.8]} 3... Bc5 {[%clk 0:04:57]}
4. O-O {[%clk 0:04:56.6]} 4... Nf6 {[%clk 0:04:56.3]} 5. d3 {[%clk 0:04:55.8]}
5... O-O {[%clk 0:04:55.2]} 6. c3 {[%clk 0:04:55]} 6... d5 {[%clk 0:04:53.9]} 7.
exd5 {[%clk 0:04:54.9]} 7... Nxd5 {[%clk 0:04:53.1]} 8. Re1 {[%clk 0:04:54.6]}
8... Be6 {[%clk 0:04:51.9]} 9. Nxe5 {[%clk 0:04:52.8]} 9... Nxe5 {[%clk
0:04:50.8]} 10. Rxe5 {[%clk 0:04:52.7]} 10... Bxf2+ {[%clk 0:04:50.1]} 11. Kh1
{[%clk 0:04:48.2]} 11... Bb6 {[%clk 0:04:48.2]} 12. Qf3 {[%clk 0:04:45]} 12...
c6 {[%clk 0:04:45.8]} 13. Nd2 {[%clk 0:04:41.2]} 13... Bc7 {[%clk 0:04:44.6]}
14. Re4 {[%clk 0:04:27.4]} 14... Nf6 {[%clk 0:04:36.3]} 15. Re1 {[%clk 0:04:22]}
15... Qd6 {[%clk 0:04:27.9]} 16. Nf1 {[%clk 0:04:13.8]} 16... Bg4 {[%clk
0:04:25.9]} 17. Qf2 {[%clk 0:04:09.6]} 17... Bb6 {[%clk 0:04:23.8]} 18. d4
{[%clk 0:04:06.9]} 18... Rae8 {[%clk 0:04:22.8]} 19. Bf4 {[%clk 0:04:05.7]}
19... Qd7 {[%clk 0:04:13]} 20. Nd2 {[%clk 0:04:04.2]} 20... Bh5 {[%clk
0:03:58.2]} 21. h3 {[%clk 0:04:01.6]} 21... Bg6 {[%clk 0:03:45.4]} 22. Be5
{[%clk 0:03:59.4]} 22... Bc7 {[%clk 0:03:17.2]} 23. Bxf6 {[%clk 0:03:53.8]}
23... gxf6 {[%clk 0:03:16.3]} 24. Qxf6 {[%clk 0:03:53.5]} 24... a5 {[%clk
0:03:03.9]} 25. a4 {[%clk 0:03:50.7]} 25... b5 {[%clk 0:03:00.4]} 26. axb5
{[%clk 0:03:48.8]} 26... cxb5 {[%clk 0:02:59.8]} 27. Ba2 {[%clk 0:03:48.1]}
27... Bd8 {[%clk 0:02:40.7]} 28. Qf3 {[%clk 0:03:40]} 28... Qd6 {[%clk
0:02:31.7]} 29. Ne4 {[%clk 0:03:36.9]} 29... Bxe4 {[%clk 0:02:18.5]} 30. Rxe4
{[%clk 0:03:36.8]} 30... Rxe4 {[%clk 0:02:06.7]} 31. Qxe4 {[%clk 0:03:36.7]}
31... Bc7 {[%clk 0:02:05.8]} 32. g3 {[%clk 0:03:28.1]} 32... Qxg3 {[%clk
0:02:01.4]} 33. Rg1 {[%clk 0:03:26.4]} 1-0

[Event "Live Chess"]
[Site "Chess.com"]
[Date "2023.05.21"]
[Round "-"]
[White "hturner40"]
[Black "Hacker_2009"]
[Result "0-1"]
[WhiteElo "1781"]
[BlackElo "1954"]
[TimeControl "300"]
[EndTime "8:36:20 PDT"]
[Termination "Hacker_2009 won on time"]

1. Nf3 {[%clk 0:04:55]} 1... Nf6 {[%clk 0:04:58.2]} 2. g3 {[%clk 0:04:52.8]}
2... d5 {[%clk 0:04:56.2]} 3. Bg2 {[%clk 0:04:51.8]} 3... e6 {[%clk 0:04:54.1]}
4. O-O {[%clk 0:04:50.5]} 4... c5 {[%clk 0:04:51.6]} 5. d4 {[%clk 0:04:48.6]}
5... Nc6 {[%clk 0:04:47.3]} 6. c4 {[%clk 0:04:46.6]} 6... cxd4 {[%clk
0:04:44.8]} 7. Qa4 {[%clk 0:04:42.1]} 7... Bd7 {[%clk 0:04:42.8]} 8. cxd5 {[%clk
0:04:38.1]} 8... Nxd5 {[%clk 0:04:40.5]} 9. Nxd4 {[%clk 0:04:34]} 9... Nxd4
{[%clk 0:04:34.7]} 10. Qxd4 {[%clk 0:04:32.7]} 10... Bc6 {[%clk 0:04:34.3]} 11.
Rd1 {[%clk 0:04:14.3]} 11... Qb6 {[%clk 0:04:31.9]} 12. Qxb6 {[%clk 0:03:48.6]}
12... axb6 {[%clk 0:04:28.4]} 13. Nc3 {[%clk 0:03:42.9]} 13... Nxc3 {[%clk
0:04:25.8]} 14. bxc3 {[%clk 0:03:36.2]} 14... Bxg2 {[%clk 0:04:23.8]} 15. Kxg2
{[%clk 0:03:34.2]} 15... Be7 {[%clk 0:04:22.8]} 16. Bf4 {[%clk 0:03:17.3]} 16...
O-O {[%clk 0:04:19]} 17. a4 {[%clk 0:03:11.7]} 17... Bf6 {[%clk 0:04:14.6]} 18.
Ra3 {[%clk 0:02:57.1]} 18... Rac8 {[%clk 0:04:10.9]} 19. Rb3 {[%clk 0:02:53.2]}
19... Rxc3 {[%clk 0:04:04.2]} 20. Rxb6 {[%clk 0:02:51.4]} 20... Rc4 {[%clk
0:03:59.3]} 21. Rxb7 {[%clk 0:02:26.6]} 21... Rxa4 {[%clk 0:03:57.4]} 22. Rdb1
{[%clk 0:02:15.3]} 22... h6 {[%clk 0:03:54.6]} 23. Rb8 {[%clk 0:02:06.6]} 23...
Rxb8 {[%clk 0:03:47.6]} 24. Rxb8+ {[%clk 0:02:04.4]} 24... Kh7 {[%clk
0:03:47.1]} 25. Rf8 {[%clk 0:01:55.3]} 25... Kg6 {[%clk 0:03:39.1]} 26. h4
{[%clk 0:01:53.7]} 26... Ra5 {[%clk 0:03:27.7]} 27. g4 {[%clk 0:01:44.5]} 27...
Bxh4 {[%clk 0:03:25.4]} 28. Kf3 {[%clk 0:01:31.4]} 28... Bf6 {[%clk 0:03:19.8]}
29. Rh8 {[%clk 0:01:26.8]} 29... Ra3+ {[%clk 0:03:16.9]} 30. e3 {[%clk
0:01:22.9]} 30... Ra4 {[%clk 0:03:09.2]} 31. Bg3 {[%clk 0:01:14.5]} 31... Bg5
{[%clk 0:02:58]} 32. Ke2 {[%clk 0:01:02.4]} 32... Rxg4 {[%clk 0:02:53.2]} 33.
Kf3 {[%clk 0:00:49]} 33... Ra4 {[%clk 0:02:50.5]} 34. e4 {[%clk 0:00:21.1]}
34... f5 {[%clk 0:02:36.2]} 35. exf5+ {[%clk 0:00:18]} 35... exf5 {[%clk
0:02:34.4]} 36. Rf8 {[%clk 0:00:07.9]} 36... Ra3+ {[%clk 0:02:32.3]} 37. Kg2
{[%clk 0:00:04.7]} 37... Ra6 {[%clk 0:02:31.6]} 38. f4 {[%clk 0:00:01.5]} 38...
Bf6 {[%clk 0:02:29.4]} 39. Kh3 {[%clk 0:00:00.1]} 39... Ra1 {[%clk 0:02:27.7]}
0-1

[Event "Live Chess"]
[Site "Chess.com"]
[Date "2023.05.21"]
[Round "-"]
[White "OceanFloater"]
[Black "robotking06"]
[Result "1-0"]
[WhiteElo "1033"]
[BlackElo "351"]
[TimeControl "300"]
[EndTime "8:36:23 PDT"]
[Termination "OceanFloater won by resignation"]

1. e4 {[%clk 0:04:57]} 1... e5 {[%clk 0:04:57.4]} 2. Nf3 {[%clk 0:04:55.9]} 2...
Nc6 {[%clk 0:04:47.3]} 3. Bb5 {[%clk 0:04:54.3]} 3... a6 {[%clk 0:04:46]} 4.
Bxc6 {[%clk 0:04:53.2]} 4... bxc6 {[%clk 0:04:44.8]} 5. Nxe5 {[%clk 0:04:52.8]}
5... f6 {[%clk 0:04:39.4]} 6. Nf3 {[%clk 0:04:50.6]} 6... d5 {[%clk 0:04:35]} 7.
d3 {[%clk 0:04:46.7]} 7... dxe4 {[%clk 0:04:33.7]} 8. dxe4 {[%clk 0:04:45.3]}
8... Qxd1+ {[%clk 0:04:32.6]} 9. Kxd1 {[%clk 0:04:44.3]} 9... Bg4 {[%clk
0:04:29.3]} 10. Bf4 {[%clk 0:04:40.2]} 10... Bxf3+ {[%clk 0:04:24.1]} 11. gxf3
{[%clk 0:04:38.8]} 11... Bd6 {[%clk 0:04:19.3]} 12. Bxd6 {[%clk 0:04:35.1]}
12... cxd6 {[%clk 0:04:18.1]} 13. Nc3 {[%clk 0:04:33.5]} 13... O-O-O {[%clk
0:04:17]} 14. Ke2 {[%clk 0:04:32.1]} 14... d5 {[%clk 0:04:15.7]} 15. exd5 {[%clk
0:04:28]} 15... cxd5 {[%clk 0:04:14.9]} 16. Rhg1 {[%clk 0:04:27.5]} 16... d4
{[%clk 0:04:13.7]} 17. Ne4 {[%clk 0:04:24.5]} 17... Ne7 {[%clk 0:04:11.5]} 18.
Rxg7 {[%clk 0:04:19.7]} 18... Rhe8 {[%clk 0:04:05]} 19. Rxh7 {[%clk 0:04:14.3]}
19... Nf5 {[%clk 0:04:03.2]} 20. Rd1 {[%clk 0:04:05.7]} 20... a5 {[%clk
0:03:46.9]} 21. Rh5 {[%clk 0:04:00.5]} 21... Re5 {[%clk 0:03:40.7]} 22. Kf1
{[%clk 0:03:56.7]} 22... Ne3+ {[%clk 0:03:26.5]} 23. fxe3 {[%clk 0:03:52.4]}
23... dxe3 {[%clk 0:03:25.7]} 24. Rxd8+ {[%clk 0:03:50.3]} 24... Kxd8 {[%clk
0:03:24.3]} 25. Rh8+ {[%clk 0:03:47.6]} 25... Ke7 {[%clk 0:03:23]} 26. Rh7+
{[%clk 0:03:44.3]} 26... Ke6 {[%clk 0:03:21.8]} 27. Ke2 {[%clk 0:03:37.1]} 27...
f5 {[%clk 0:03:21.7]} 28. Rh6+ {[%clk 0:03:32.7]} 28... Kd5 {[%clk 0:03:19.8]}
29. Nc3+ {[%clk 0:03:30.8]} 29... Kd4 {[%clk 0:03:17.9]} 30. Rd6+ {[%clk
0:03:28.9]} 30... Kc5 {[%clk 0:03:15.8]} 31. Rd5+ {[%clk 0:03:25.5]} 31... Rxd5
{[%clk 0:03:12.3]} 32. Nxd5 {[%clk 0:03:24.7]} 32... Kxd5 {[%clk 0:03:11.4]} 33.
Kxe3 {[%clk 0:03:23.3]} 33... Ke5 {[%clk 0:03:10.3]} 34. h4 {[%clk 0:03:22.8]}
34... f4+ {[%clk 0:03:09.3]} 35. Kf2 {[%clk 0:03:21.1]} 35... Kf5 {[%clk
0:03:07.6]} 36. c4 {[%clk 0:03:20.6]} 36... a4 {[%clk 0:02:48.1]} 37. c5 {[%clk
0:03:19.6]} 37... Ke5 {[%clk 0:02:19.1]} 38. h5 {[%clk 0:03:18.4]} 38... Kf6
{[%clk 0:02:14.4]} 39. c6 {[%clk 0:03:17.1]} 39... Kg5 {[%clk 0:02:11.2]} 40. c7
{[%clk 0:03:15.6]} 1-0

[Event "Live Chess"]
[Site "Chess.com"]
[Date "2023.05.21"]
[Round "-"]
[White "Ocelot32"]
[Black "AttackingSnowLeopard"]
[Result "0-1"]
[WhiteElo "1418"]
[BlackElo "2166"]
[TimeControl "300"]
[EndTime "8:36:31 PDT"]
[Termination "AttackingSnowLeopard won by resignation"]

1. e4 {[%clk 0:04:56.8]} 1... c6 {[%clk 0:04:58.2]} 2. Nf3 {[%clk 0:04:53]} 2...
d5 {[%clk 0:04:57.5]} 3. Nc3 {[%clk 0:04:52.5]} 3... dxe4 {[%clk 0:04:56.5]} 4.
Nxe4 {[%clk 0:04:51.7]} 4... Nf6 {[%clk 0:04:56]} 5. Qe2 {[%clk 0:04:51]} 5...
Nxe4 {[%clk 0:04:54.5]} 6. Qxe4 {[%clk 0:04:50.4]} 6... Nd7 {[%clk 0:04:53.5]}
7. d4 {[%clk 0:04:49.4]} 7... Nf6 {[%clk 0:04:52.8]} 8. Qe3 {[%clk 0:04:42.1]}
8... Bf5 {[%clk 0:04:51.3]} 9. Bd3 {[%clk 0:04:40.8]} 9... Bxd3 {[%clk
0:04:49.8]} 10. Qxd3 {[%clk 0:04:39.9]} 10... e6 {[%clk 0:04:49.5]} 11. Bg5
{[%clk 0:04:37.6]} 11... Be7 {[%clk 0:04:48.9]} 12. O-O {[%clk 0:04:35.5]} 12...
O-O {[%clk 0:04:47.4]} 13. c3 {[%clk 0:04:34.4]} 13... h6 {[%clk 0:04:46.4]} 14.
Bh4 {[%clk 0:04:32.6]} 14... Qd5 {[%clk 0:04:44.8]} 15. Rfe1 {[%clk 0:04:29.2]}
15... c5 {[%clk 0:04:44.1]} 16. Red1 {[%clk 0:04:21.7]} 16... cxd4 {[%clk
0:04:42.6]} 17. Qxd4 {[%clk 0:04:19.4]} 17... Qxd4 {[%clk 0:04:41.4]} 18. Rxd4
{[%clk 0:04:18.2]} 18... Bc5 {[%clk 0:04:39.4]} 19. Rd3 {[%clk 0:04:13.9]} 19...
Nd5 {[%clk 0:04:37.9]} 20. Rad1 {[%clk 0:04:09.8]} 20... f5 {[%clk 0:04:36.3]}
21. c4 {[%clk 0:04:06.3]} 21... Nb4 {[%clk 0:04:34.6]} 22. Rd7 {[%clk
0:04:03.1]} 22... g5 {[%clk 0:04:33.4]} 23. Bxg5 {[%clk 0:04:00.5]} 23... hxg5
{[%clk 0:04:31.5]} 24. Rc7 {[%clk 0:03:58.8]} 24... Bb6 {[%clk 0:04:29.1]} 25.
Rxb7 {[%clk 0:03:57]} 25... Rad8 {[%clk 0:04:28.7]} 26. Rxd8 {[%clk 0:03:51.8]}
26... Rxd8 {[%clk 0:04:28.6]} 27. g3 {[%clk 0:03:49.8]} 27... Rd1+ {[%clk
0:04:27.9]} 28. Kg2 {[%clk 0:03:48.4]} 28... Nd3 {[%clk 0:04:27.5]} 29. Nxg5
{[%clk 0:03:46.8]} 29... Bxf2 {[%clk 0:04:25.2]} 30. Nxe6 {[%clk 0:03:44.2]}
30... Rg1+ {[%clk 0:04:23.9]} 31. Kf3 {[%clk 0:03:41.4]} 31... Bb6 {[%clk
0:04:22.1]} 32. Rg7+ {[%clk 0:03:36.3]} 32... Kh8 {[%clk 0:04:20.6]} 33. Rg6
{[%clk 0:03:26.6]} 33... Ne5+ {[%clk 0:04:19.3]} 0-1

[Event "Live Chess"]
[Site "Chess.com"]
[Date "2023.05.21"]
[Round "-"]
[White "domrobson"]
[Black "Duke_of_Bebington"]
[Result "1-0"]
[WhiteElo "1808"]
[BlackElo "1554"]
[TimeControl "300"]
[EndTime "8:36:33 PDT"]
[Termination "domrobson won by resignation"]

1. d4 {[%clk 0:04:58.6]} 1... d5 {[%clk 0:04:59]} 2. c4 {[%clk 0:04:57.4]} 2...
c6 {[%clk 0:04:57.9]} 3. Nf3 {[%clk 0:04:56.7]} 3... Nf6 {[%clk 0:04:55.2]} 4.
Nc3 {[%clk 0:04:56.3]} 4... dxc4 {[%clk 0:04:53.9]} 5. e3 {[%clk 0:04:52.1]}
5... b5 {[%clk 0:04:52.3]} 6. a4 {[%clk 0:04:50.9]} 6... Bd7 {[%clk 0:04:44.7]}
7. axb5 {[%clk 0:04:48.6]} 7... cxb5 {[%clk 0:04:43.7]} 8. Ne5 {[%clk
0:04:46.5]} 8... a6 {[%clk 0:04:38.9]} 9. b3 {[%clk 0:04:43]} 9... cxb3 {[%clk
0:04:37.1]} 10. Nxd7 {[%clk 0:04:40.3]} 10... Qxd7 {[%clk 0:04:35.5]} 11. Bxb5
{[%clk 0:04:37.9]} 11... Nc6 {[%clk 0:04:30.6]} 12. d5 {[%clk 0:04:33.3]} 12...
Nxd5 {[%clk 0:04:28.9]} 13. Qxd5 {[%clk 0:04:28.6]} 13... Qxd5 {[%clk
0:04:25.9]} 14. Nxd5 {[%clk 0:04:27.2]} 14... e6 {[%clk 0:04:24]} 15. Bxc6+
{[%clk 0:04:21.1]} 1-0

[Event "Live Chess"]
[Site "Chess.com"]
[Date "2023.05.21"]
[Round "-"]
[White "ramses-IIG"]
[Black "boilerboy1"]
[Result "0-1"]
[WhiteElo "854"]
[BlackElo "1054"]
[TimeControl "300"]
[EndTime "8:36:36 PDT"]
[Termination "boilerboy1 won by resignation"]

1. e4 {[%clk 0:04:58.3]} 1... e5 {[%clk 0:04:57.3]} 2. Nf3 {[%clk 0:04:58.2]}
2... d6 {[%clk 0:04:55.5]} 3. Bc4 {[%clk 0:04:57]} 3... Be7 {[%clk 0:04:53.6]}
4. d3 {[%clk 0:04:54.5]} 4... Nf6 {[%clk 0:04:51.9]} 5. O-O {[%clk 0:04:53.4]}
5... O-O {[%clk 0:04:50.7]} 6. c3 {[%clk 0:04:53]} 6... c6 {[%clk 0:04:48.8]} 7.
Bg5 {[%clk 0:04:51.8]} 7... Nbd7 {[%clk 0:04:46.9]} 8. Na3 {[%clk 0:04:42]} 8...
a6 {[%clk 0:04:45.2]} 9. Bb3 {[%clk 0:04:38.9]} 9... Nb6 {[%clk 0:04:42.1]} 10.
Bc2 {[%clk 0:04:36.7]} 10... Bg4 {[%clk 0:04:39.2]} 11. h3 {[%clk 0:04:32.7]}
11... Bh5 {[%clk 0:04:36.9]} 12. Qe2 {[%clk 0:04:31.5]} 12... d5 {[%clk
0:04:31.1]} 13. Qe3 {[%clk 0:04:29.9]} 13... d4 {[%clk 0:04:26.8]} 14. cxd4
{[%clk 0:04:27.1]} 14... exd4 {[%clk 0:04:24.2]} 15. Nxd4 {[%clk 0:04:17.7]}
15... c5 {[%clk 0:04:17.5]} 16. Nf5 {[%clk 0:04:12.9]} 16... Bg6 {[%clk
0:04:10.7]} 17. Nxe7+ {[%clk 0:03:57.8]} 17... Qxe7 {[%clk 0:04:09.2]} 18. Bxf6
{[%clk 0:03:47.2]} 18... Qxf6 {[%clk 0:04:06.9]} 19. e5 {[%clk 0:03:47]} 19...
Qc6 {[%clk 0:03:55.1]} 20. Bd1 {[%clk 0:03:26.6]} 20... Rad8 {[%clk 0:03:39.1]}
21. Bf3 {[%clk 0:03:23.7]} 21... Qc7 {[%clk 0:03:27.9]} 22. Nc4 {[%clk 0:03:13]}
22... Rxd3 {[%clk 0:03:25.4]} 23. Qc1 {[%clk 0:02:38.4]} 23... Nxc4 {[%clk
0:03:17.3]} 24. Qxc4 {[%clk 0:02:34.2]} 24... Qxe5 {[%clk 0:03:13]} 25. Bxb7
{[%clk 0:02:17]} 25... Qxb2 {[%clk 0:03:07]} 26. Qxa6 {[%clk 0:01:55.2]} 26...
Rd2 {[%clk 0:02:49.2]} 27. Bf3 {[%clk 0:01:09.4]} 27... Bd3 {[%clk 0:02:45.5]}
28. Rfd1 {[%clk 0:00:34.9]} 28... Rxd1+ {[%clk 0:02:38.7]} 29. Rxd1 {[%clk
0:00:32.8]} 29... Bxa6 {[%clk 0:02:37]} 0-1

[Event "Live Chess"]
[Site "Chess.com"]
[Date "2023.05.21"]
[Round "-"]
[White "GEMdzq"]
[Black "djw60"]
[Result "0-1"]
[WhiteElo "2217"]
[BlackElo "2192"]
[TimeControl "300"]
[EndTime "8:36:49 PDT"]
[Termination "djw60 won by resignation"]

1. e4 {[%clk 0:04:59.2]} 1... e6 {[%clk 0:04:57.4]} 2. d4 {[%clk 0:04:58.1]}
2... d5 {[%clk 0:04:56.1]} 3. Nc3 {[%clk 0:04:57.6]} 3... Nf6 {[%clk 0:04:54.2]}
4. Bg5 {[%clk 0:04:55.8]} 4... Bb4 {[%clk 0:04:51.7]} 5. e5 {[%clk 0:04:54.8]}
5... h6 {[%clk 0:04:50.4]} 6. exf6 {[%clk 0:04:50.9]} 6... hxg5 {[%clk
0:04:48.5]} 7. fxg7 {[%clk 0:04:50.8]} 7... Rg8 {[%clk 0:04:47.1]} 8. h4 {[%clk
0:04:50.7]} 8... gxh4 {[%clk 0:04:42]} 9. Qh5 {[%clk 0:04:50.2]} 9... Qf6 {[%clk
0:04:38.4]} 10. Qxh4 {[%clk 0:04:49.3]} 10... Qxg7 {[%clk 0:04:32.6]} 11. Nf3
{[%clk 0:04:46.5]} 11... Nc6 {[%clk 0:04:29.5]} 12. O-O-O {[%clk 0:04:45]} 12...
Bd7 {[%clk 0:04:22.1]} 13. Nb5 {[%clk 0:04:40.5]} 13... Ba5 {[%clk 0:03:58.1]}
14. Qf4 {[%clk 0:04:35]} 14... Rc8 {[%clk 0:03:48.8]} 15. Bd3 {[%clk 0:04:33.4]}
15... a6 {[%clk 0:03:41.9]} 16. Nc3 {[%clk 0:04:28.5]} 16... Bxc3 {[%clk
0:03:37.7]} 17. bxc3 {[%clk 0:04:28.4]} 17... Qf8 {[%clk 0:03:35.6]} 18. Kb2
{[%clk 0:04:27.4]} 18... Qd6 {[%clk 0:03:34.3]} 19. Ne5 {[%clk 0:04:07.5]} 19...
Nxe5 {[%clk 0:03:32.6]} 20. dxe5 {[%clk 0:04:07.1]} 20... Qb6+ {[%clk
0:03:30.2]} 21. Kc1 {[%clk 0:04:02]} 21... Qc5 {[%clk 0:03:26.6]} 22. Rh7 {[%clk
0:03:55.2]} 22... Rf8 {[%clk 0:03:24.1]} 23. Kd2 {[%clk 0:03:52.4]} 23... Bb5
{[%clk 0:03:16.9]} 24. Rdh1 {[%clk 0:03:35]} 24... Bxd3 {[%clk 0:03:13.3]} 25.
cxd3 {[%clk 0:03:34.9]} 25... Qa3 {[%clk 0:03:08.9]} 26. Qf6 {[%clk 0:03:13.9]}
26... Qb2+ {[%clk 0:03:02.3]} 27. Ke3 {[%clk 0:03:11]} 27... Qxc3 {[%clk
0:02:59.1]} 28. Rh8 {[%clk 0:02:59.2]} 28... Qc5+ {[%clk 0:02:55.2]} 29. Kf3
{[%clk 0:02:51.8]} 29... Kd7 {[%clk 0:02:50.7]} 30. R1h7 {[%clk 0:02:45.7]}
30... Qe7 {[%clk 0:02:47.3]} 31. Qf4 {[%clk 0:02:14.3]} 31... Rxh8 {[%clk
0:02:43.4]} 32. Rxf7 {[%clk 0:02:12.7]} 32... Rcf8 {[%clk 0:02:36.5]} 0-1